bitfinex-derivatives/quotes_SOLF0:USTF0_20260207
["timestamp","ask_amount","ask_price","bid_price","bid_amount"]
[1770481218658,10.63778537,86.908,86.761,10.3823]
[1770481218858,10.63778537,86.902,86.761,10.3823]
[1770481219064,10.63778537,86.914,86.782,10.3799]
[1770481219256,21.00178537,86.916,86.782,10.3799]
[1770481219460,10.63778537,86.916,86.782,10.3799]
[1770481219960,10.63778537,86.915,86.782,10.3799]
[1770481220156,10.63778537,86.919,86.782,10.3799]
[1770481220364,10.63778537,86.916,86.782,10.3799]
[1770481220562,10.63778537,86.913,86.782,10.3799]
[1770481220768,10.63778537,86.909,86.782,10.3799]
[1770481220968,10.63778537,86.913,86.782,10.3799]
[1770481221170,10.63778537,86.909,86.782,10.3799]
[1770481221466,10.63778537,86.903,86.782,10.3799]
[1770481221868,10.63778537,86.902,86.782,10.3799]
[1770481222374,10.63778537,86.902,86.73,34.32]
[1770481222375,10.63778537,86.886,86.76,10.3825]
[1770481222762,10.63778537,86.88,86.76,10.3825]
[1770481222959,10.63778537,86.889,86.76,10.3825]
[1770481223166,10.63778537,86.875,86.76,10.3825]
[1770481223369,10.63778537,86.862,86.738,10.3851]
[1770481223772,10.63778537,86.861,86.738,10.3851]
[1770481223966,10.63778537,86.861,86.691,34.32]
[1770481223967,10.63778537,86.877,86.757,10.3828]
[1770481224268,10.63778537,86.871,86.757,10.3828]
[1770481224470,10.63778537,86.892,86.776,10.3805]
[1770481224674,10.63778537,86.908,86.764,161.4987]
[1770481224975,10.63778537,86.908,86.754,14.11823998]
[1770481224976,10.63778537,86.908,86.794,10.3784]
[1770481225167,10.63778537,86.905,86.794,10.3784]
[1770481225369,10.3634,86.921,86.794,10.3784]
[1770481225370,10.63778537,86.907,86.794,10.3784]
[1770481225569,10.63778537,86.908,86.794,10.3784]
[1770481225770,10.3634,86.921,86.794,10.3784]
[1770481225771,10.63778537,86.912,86.794,10.3784]
[1770481225968,10.63778537,86.917,86.812,10.3763]
[1770481226169,10.63778537,86.925,86.812,10.3763]
[1770481226375,10.63778537,86.926,86.812,10.3763]
[1770481226671,10.63778537,86.924,86.812,10.3763]
[1770481226863,10.63778537,86.923,86.812,10.3763]
[1770481227271,10.63778537,86.926,86.812,10.3763]
[1770481228376,10.63778537,86.927,86.812,10.3763]
[1770481229275,10.63778537,86.948,86.835,10.3735]
[1770481229483,10.63778537,86.95,86.835,10.3735]
[1770481229778,10.63778537,86.967,86.852,10.3714]
[1770481230180,10.63778537,86.945,86.83,10.3741]
[1770481230373,10.63778537,86.954,86.83,10.3741]
[1770481230575,10.63778537,86.953,86.83,10.3741]
[1770481230973,10.63778537,86.954,86.83,10.3741]
[1770481231381,10.63778537,86.955,86.83,10.3741]
[1770481231570,10.3596,86.952,86.83,10.3741]
[1770481231767,10.63778537,86.944,86.83,10.3741]
[1770481232477,36.32279125,86.979,86.83,10.3741]
[1770481232478,10.63778537,86.947,86.83,10.3741]
[1770481233272,10.63778537,86.948,86.83,10.3741]
[1770481233675,10.3575,86.97,86.83,10.3741]
[1770481233676,10.63778537,86.958,86.83,10.3741]
[1770481233873,24.10929534,86.97,86.83,10.3741]
[1770481233874,10.63778537,86.959,86.83,10.3741]
[1770481234379,10.63778537,86.96,86.83,10.3741]
[1770481235076,10.63778537,86.96,86.851,10.3715]
[1770481235276,10.3551,86.99,86.793,14.11823998]
[1770481235277,10.63778537,86.982,86.849,161.3403]
[1770481235468,10.63778537,86.982,86.844,161.3494]
[1770481235673,10.63778537,86.988,86.87,10.3693]
[1770481235870,10.63778537,86.994,86.863,161.3143]
[1770481236071,10.63778537,87.007,86.865,161.311]
[1770481236268,2.00202504,87.013,86.865,161.311]
[1770481236472,10.63778537,87.015,86.869,161.303]
[1770481236674,20.98878537,87.024,86.872,161.298]
[1770481236865,2.0017832,87.023,86.873,161.2952]
[1770481237276,10.351,87.024,86.902,10.3655]
[1770481237673,10.3515,87.02,86.902,10.3655]
[1770481238176,10.63778537,87.033,86.92,10.3634]
[1770481238371,10.3495,87.037,86.92,10.3634]
[1770481238778,8.89381611,87.05,86.92,10.3634]
[1770481239082,8.89381611,87.05,86.92,19.25721611]
[1770481239674,10.63778537,87.065,86.936,10.3614]
[1770481239876,10.3455,87.071,86.95,8.89381611]
[1770481240176,10.3455,87.071,86.92,8.89381611]
[1770481240177,2.00051163,87.073,86.96,8.89381611]
[1770481240374,8.89381611,87.11,86.96,8.89381611]
[1770481240768,8.89381611,87.11,86.987,10.3553]
[1770481241085,8.89381611,87.11,86.934,34.32]
[1770481241086,10.63778537,87.133,86.99,8.89381611]
[1770481241375,1.99927038,87.133,86.99,8.89381611]
[1770481241580,13.75179534,87.167,86.99,8.89381611]
[1770481241581,10.63778537,87.159,86.992,161.0755]
[1770481241777,8.89381611,87.16,86.992,161.0755]
[1770481241976,1.99885698,87.153,86.997,161.0653]
[1770481242182,1.99885698,87.153,86.941,34.32]
[1770481242183,1.99885698,87.153,86.972,161.1126]
[1770481242373,8.89381611,87.13,86.98,8.89381611]
[1770481242772,10.3409,87.11,86.98,8.89381611]
[1770481242978,8.89381611,87.1,86.975,10.3568]
[1770481243173,8.89381611,87.1,86.95,8.89381611]
[1770481243587,10.3423,87.098,86.953,10.3594]
[1770481243987,8.89381611,87.07,86.92,8.89381611]
[1770481244193,10.3458,87.068,86.933,10.3618]
[1770481244484,10.3458,87.068,86.92,8.89381611]
[1770481244684,10.63778537,87.088,86.833,161.3704]
[1770481244685,8.89381611,87.04,86.913,10.3641]
[1770481244888,8.89381611,87.07,86.933,161.1839]
[1770481245085,8.89381611,87.07,86.932,161.1855]
[1770481245384,10.341,87.109,86.964,10.3582]
[1770481245600,160.8569,87.111,86.923,161.2019]
[1770481245791,10.3435,87.088,86.945,10.3604]
[1770481246381,10.3435,87.088,86.939,161.1736]
[1770481246588,24.47850631,87.12,86.965,10.358]
[1770481246589,10.3409,87.109,86.965,10.358]
[1770481248380,10.3418,87.102,86.965,10.358]
[1770481248586,14.00362202,87.152,86.965,10.358]
[1770481248587,34.54,87.101,86.965,10.358]
[1770481248793,34.54,87.101,86.944,10.3605]
[1770481249091,34.54,87.087,86.926,161.1976]
[1770481249686,10.3437,87.086,86.94,10.3609]
[1770481250084,34.54,87.085,86.9,24.47850631]
[1770481250290,34.54,87.068,86.876,161.2897]
[1770481250593,34.54,87.066,86.87,24.47850631]
[1770481250892,34.54,87.066,86.899,10.3658]
[1770481251088,24.47850631,87.07,86.899,161.2472]
[1770481251595,34.54,87.098,86.917,10.3638]
[1770481251894,100.34850631,87.1,86.917,10.3638]
[1770481251895,34.54,87.089,86.917,10.3638]
[1770481252093,10.3448,87.076,86.917,10.3638]
[1770481252297,34.54,87.076,86.917,10.3638]
[1770481253295,34.54,87.084,86.917,10.3638]
[1770481253591,10.347,87.058,86.917,10.3638]
[1770481254591,10.3491,87.041,86.917,10.3638]
[1770481254792,34.54,87.061,86.899,10.3658]
[1770481254994,24.47850631,87.04,86.855,161.3288]
[1770481255199,10.3513,87.022,86.86,161.3196]
[1770481255398,10.3513,87.022,86.881,10.368]
[1770481255589,160.9488,87.061,86.881,161.2806]
[1770481255990,10.3491,87.041,86.901,10.3657]
[1770481256192,160.9214,87.076,86.893,161.2593]
[1770481256501,10.3489,87.042,86.92,10.3633]
[1770481256801,10.3489,87.042,86.876,161.2899]
[1770481256993,10.3489,87.042,86.878,161.2857]
[1770481257389,10.3511,87.024,86.901,10.3656]
[1770481258501,34.54,87.04,86.875,161.2909]
[1770481258698,24.47850631,87.07,86.891,161.2615]
[1770481258894,10.349,87.042,86.919,10.3634]
[1770481259899,10.3462,87.065,86.938,10.3612]
[1770481260096,24.47850631,87.1,86.901,34.54]
[1770481260294,10.3441,87.082,86.956,10.359]
[1770481260496,34.54,87.128,86.93,24.47850631]
[1770481260703,34.54,87.122,86.945,161.1614]
[1770481260893,10.3421,87.099,86.973,10.3571]
[1770481261098,10.3421,87.099,86.958,161.1373]
[1770481261490,10.3391,87.124,86.986,161.0859]
[1770481261698,24.47850631,87.16,86.987,161.0846]
[1770481261901,160.7494,87.169,86.993,161.0722]
[1770481262097,10.3371,87.141,87.022,10.3512]
[1770481262906,10.3393,87.124,86.999,10.3539]
[1770481263401,10.3393,87.124,86.978,10.3565]
[1770481263999,10.3415,87.105,86.978,10.3565]
[1770481264598,10.3415,87.105,86.959,10.3586]
[1770481264801,10.3436,87.087,86.959,10.3586]
[1770481265202,10.3436,87.087,86.94,10.3609]
[1770481265403,8.88650945,87.07,86.94,10.3609]
[1770481265602,8.88650945,87.07,86.92,8.88650945]
[1770481265603,8.88650945,87.1,86.959,10.3587]
[1770481265803,8.88650945,87.1,86.96,161.1346]
[1770481265997,8.88650945,87.1,86.95,8.88650945]
[1770481266204,8.88650945,87.13,86.995,10.3544]
[1770481266503,10.49395378,87.15,86.98,8.88650945]
[1770481266705,10.3384,87.131,86.994,10.3545]
[1770481267010,8.88650945,87.11,86.994,10.3545]
[1770481268010,10.3384,87.131,86.994,10.3545]
[1770481270001,8.88650945,87.14,87.012,10.3524]
[1770481270798,1.99885698,87.153,87.031,10.3501]
[1770481271002,8.88650945,87.17,87.031,10.3501]
[1770481271199,10.3352,87.157,87.031,10.3501]
[1770481271604,1.99836341,87.163,87.031,10.3501]
[1770481271806,8.88650945,87.17,87.031,10.3501]
[1770481272106,8.88650945,87.17,87.048,10.3481]
[1770481272612,10.3339,87.168,87.01,8.88650945]
[1770481272908,10.3339,87.168,87.03,10.3503]
[1770481273204,10.3339,87.168,87.01,8.88650945]
[1770481273406,8.88650945,87.17,87.04,8.88650945]
[1770481273607,10.3315,87.189,87.04,8.88650945]
[1770481273804,1.99811672,87.193,87.049,160.9699]
[1770481274111,484.02619478,87.205,87.04,8.88650945]
[1770481274410,10.3334,87.173,87.04,8.88650945]
[1770481274708,8.88650945,87.18,87.01,8.88650945]
[1770481274709,8.88650945,87.15,87.01,8.88650945]
[1770481274910,10.337,87.143,87.024,10.351]
[1770481275313,8.88650945,87.15,87.024,10.351]
[1770481275610,10.3348,87.161,87.041,10.3489]
[1770481276010,10.3348,87.161,87.01,8.88650945]
[1770481276601,10.337,87.143,87.01,8.88650945]
[1770481276802,160.7881,87.148,86.969,161.117]
[1770481277003,160.798,87.143,86.99,8.88650945]
[1770481277207,10.3392,87.124,87.004,10.3534]
[1770481277603,10.3418,87.102,86.99,8.8735938]
[1770481278408,10.3396,87.12,86.991,10.3549]
[1770481279219,10.3417,87.103,86.99,8.8735938]
[1770481279516,34.54,87.102,86.972,10.3571]
[1770481280412,8.8735938,87.11,86.991,10.3549]
[1770481280818,10.54198214,87.13,86.99,8.8735938]
[1770481281009,8.8735938,87.14,86.99,8.8735938]
[1770481281210,8.8735938,87.14,87.007,10.3529]
[1770481281719,19.41557594,87.14,87.007,10.3529]
[1770481281914,8.8735938,87.14,87.026,10.3507]
[1770481282115,10.54198214,87.157,87.026,10.3507]
[1770481282617,10.3353,87.157,87.026,10.3507]
[1770481283017,10.54198214,87.167,87.045,10.3485]
[1770481283218,10.54198214,87.154,87.02,8.8735938]
[1770481283423,10.54198214,87.141,86.99,8.8735938]
[1770481283610,10.54198214,87.135,87.0,10.3538]
[1770481283812,10.54198214,87.133,87.0,10.3538]
[1770481284119,10.3386,87.129,87.0,10.3538]
[1770481284516,10.54198214,87.127,87.0,10.3538]
[1770481284720,10.3407,87.112,87.0,10.3538]
[1770481285619,8.8735938,87.12,87.0,10.3538]
[1770481285815,8.8735938,87.12,87.017,10.3518]
[1770481287816,10.3408,87.11,86.972,161.1115]
[1770481288013,8.8735938,87.12,86.99,8.8735938]
[1770481288014,19.41557594,87.12,86.99,8.8735938]
[1770481288216,28.3719293,87.171,87.02,8.8735938]
[1770481288217,10.54198214,87.145,87.02,8.8735938]
[1770481288418,10.54198214,87.152,87.041,10.3489]
[1770481288722,10.54198214,87.155,87.041,10.3489]
[1770481289019,10.54198214,87.16,87.041,10.3489]
[1770481289225,19.41557594,87.17,87.041,10.3489]
[1770481289423,8.8735938,87.17,87.059,10.3468]
[1770481290623,8.8735938,87.17,87.026,161.0113]
[1770481290624,19.2073938,87.17,87.042,10.3488]
[1770481290926,10.54198214,87.158,87.042,10.3488]
[1770481291113,10.54198214,87.157,87.042,10.3488]
[1770481291318,10.54198214,87.162,87.042,10.3488]
[1770481291718,10.3357,87.154,87.042,10.3488]
[1770481292321,10.54198214,87.167,87.063,10.3463]
[1770481292516,34.54,87.172,87.001,161.0591]
[1770481292725,10.54198214,87.163,87.006,161.0489]
[1770481292922,10.54198214,87.166,87.006,161.0489]
[1770481293116,10.54198214,87.165,87.006,161.0489]
[1770481293427,10.3352,87.157,87.027,10.3506]
[1770481293814,10.3352,87.157,86.973,14.11823998]
[1770481293815,10.54198214,87.143,87.003,161.0554]
[1770481294024,10.54198214,87.163,87.002,161.0572]
[1770481294226,10.54198214,87.159,87.007,161.0476]
[1770481294521,10.54198214,87.161,86.981,34.54]
[1770481294724,10.54198214,87.175,87.031,161.0035]
[1770481294928,10.3333,87.174,87.058,10.3469]
[1770481295825,10.54198214,87.179,87.058,10.3469]
[1770481296031,10.54198214,87.188,87.058,10.3469]
[1770481296733,10.3312,87.192,87.058,10.3469]
[1770481297326,10.3317,87.187,87.058,10.3469]
[1770481298032,10.3317,87.187,87.01,36.66007512]
[1770481298033,10.54198214,87.201,87.075,10.3449]
[1770481298238,10.54198214,87.202,87.075,10.3449]
[1770481298536,10.54198214,87.196,87.075,10.3449]
[1770481298837,10.54198214,87.191,87.075,10.3449]
[1770481299135,10.54198214,87.185,87.053,10.3475]
[1770481299330,10.54198214,87.18,87.053,10.3475]
[1770481299537,10.54198214,87.187,87.053,10.3475]
[1770481299732,10.3314,87.19,87.053,10.3475]
[1770481299932,10.54198214,87.189,87.053,10.3475]
[1770481300132,10.54198214,87.189,87.02,161.0233]
[1770481300133,10.3343,87.165,87.036,10.3495]
[1770481300335,10.54198214,87.164,87.036,10.3495]
[1770481300538,10.54198214,87.162,87.036,10.3495]
[1770481300836,36.66007512,87.19,87.036,10.3495]
[1770481300837,10.54198214,87.149,87.036,10.3495]
[1770481301046,10.54198214,87.148,87.018,10.3517]
[1770481301236,10.54198214,87.147,87.018,10.3517]
[1770481301436,10.54198214,87.145,87.018,10.3517]
[1770481301636,182.04628887,87.169,87.018,10.3517]
[1770481301637,10.54198214,87.144,87.018,10.3517]
[1770481301840,10.3369,87.144,87.018,10.3517]
[1770481302240,10.3369,87.144,87.034,10.3498]
[1770481302438,10.54198214,87.155,87.034,10.3498]
[1770481302642,10.54198214,87.156,87.019,161.0253]
[1770481302832,10.54198214,87.157,87.053,10.3475]
[1770481303036,10.54198214,87.157,87.03,161.0052]
[1770481303347,10.54198214,87.171,87.018,14.11823998]
[1770481303532,10.54198214,87.148,87.013,161.0365]
[1770481303735,10.54198214,87.147,86.998,161.0642]
[1770481303931,10.54198214,87.136,86.992,161.0746]
[1770481304136,10.3372,87.14,87.0,161.0594]
[1770481304337,10.54198214,87.139,87.0,161.0594]
[1770481304541,20.87918214,87.14,87.0,161.0594]
[1770481305045,10.3372,87.14,87.005,161.0509]
[1770481305738,10.3372,87.14,87.035,10.3496]
[1770481306139,10.54198214,87.137,87.035,10.3496]
[1770481306741,10.54198214,87.132,87.016,10.3519]
[1770481306933,10.54198214,87.133,87.016,10.3519]
[1770481307136,10.54198214,87.136,87.033,10.3499]
[1770481307337,21.29738887,87.161,87.033,10.3499]
[1770481307338,10.54198214,87.143,87.033,10.3499]
[1770481307533,10.54198214,87.147,87.033,10.3499]
[1770481307739,10.54198214,87.158,87.054,10.3474]
[1770481308038,10.54198214,87.156,87.054,10.3474]
[1770481308840,10.54198214,87.152,87.033,10.3498]
[1770481309041,10.54198214,87.148,87.033,10.3498]
[1770481309244,10.54198214,87.142,87.033,10.3498]
[1770481309745,10.54198214,87.14,87.033,10.3498]
[1770481309937,10.54198214,87.145,87.015,161.0322]
[1770481310139,10.54198214,87.145,87.01,36.66007512]
[1770481310140,10.54198214,87.151,87.05,10.3479]
[1770481310441,10.54198214,87.152,87.05,10.3479]
[1770481310641,28.3719293,87.201,87.028,161.0073]
[1770481310642,10.54198214,87.163,87.067,10.3458]
[1770481310841,10.54198214,87.167,87.067,10.3458]
[1770481311238,10.54198214,87.171,87.067,10.3458]
[1770481311438,10.54198214,87.172,87.067,10.3458]
[1770481311748,10.54198214,87.175,87.067,10.3458]
[1770481312138,10.54198214,87.163,87.067,10.3458]
[1770481312340,10.54198214,87.166,87.067,10.3458]
[1770481312646,10.54198214,87.175,87.067,10.3458]
[1770481313244,13.97717398,87.187,87.043,14.11823998]
[1770481313245,10.54198214,87.176,87.085,10.3437]
[1770481313442,10.3297,87.204,87.085,10.3437]
[1770481313443,10.54198214,87.174,87.085,10.3437]
[1770481313636,10.54198214,87.178,87.085,10.3437]
[1770481313840,10.54198214,87.182,87.085,10.3437]
[1770481314037,10.54198214,87.183,87.085,10.3437]
[1770481314344,10.54198214,87.188,87.104,10.3415]
[1770481314737,10.54198214,87.191,87.104,10.3415]
[1770481314944,10.54198214,87.182,87.104,10.3415]
[1770481315146,10.54198214,87.173,87.087,10.3435]
[1770481315543,10.54198214,87.175,87.087,10.3435]
[1770481316150,10.54198214,87.176,87.087,10.3435]
[1770481316850,10.54198214,87.174,87.087,10.3435]
[1770481317052,10.54198214,87.165,87.048,160.9704]
[1770481317347,10.54198214,87.185,87.073,160.9256]
[1770481317546,10.54198214,87.186,87.095,10.3425]
[1770481317744,10.54198214,87.184,87.095,10.3425]
[1770481318146,10.54198214,87.187,87.095,10.3425]
[1770481319046,10.54198214,87.188,87.11,10.3407]
[1770481319348,10.54198214,87.193,87.11,10.3407]
[1770481319647,10.54198214,87.194,87.11,10.3407]
[1770481320152,10.54198214,87.209,87.126,10.3389]
[1770481320747,10.54198214,87.21,87.126,10.3389]
[1770481320944,10.54198214,87.211,87.126,10.3389]
[1770481321448,10.54198214,87.213,87.126,10.3389]
[1770481321852,10.54198214,87.217,87.126,10.3389]
[1770481322252,10.54198214,87.216,87.126,10.3389]
[1770481322454,10.54198214,87.218,87.126,10.3389]
[1770481323158,10.54198214,87.242,87.145,160.7921]
[1770481323353,19.48977112,87.27,87.138,160.8051]
[1770481323554,8.85788713,87.27,87.174,10.3332]
[1770481323757,10.63188399,87.284,87.167,160.7519]
[1770481323959,10.63188399,87.285,87.167,160.7519]
[1770481324156,10.63188399,87.289,87.19,10.3312]
[1770481324356,10.63188399,87.294,87.19,10.3312]
[1770481324545,10.63188399,87.3,87.176,160.7346]
[1770481324751,10.63188399,87.3,87.121,13.93920781]
[1770481324752,8.85788713,87.25,87.113,13.93920781]
[1770481324953,8.85788713,87.25,87.121,160.8371]
[1770481325155,8.85788713,87.25,87.142,10.337]
[1770481325346,10.3204,87.282,87.133,160.8149]
[1770481325347,10.63188399,87.271,87.133,160.8149]
[1770481325550,10.63188399,87.273,87.133,160.8149]
[1770481325758,8.85788713,87.28,87.153,160.7768]
[1770481326552,10.63188399,87.299,87.179,10.3326]
[1770481326752,8.85788713,87.3,87.179,10.3326]
[1770481327452,10.63188399,87.295,87.16,10.3348]
[1770481327650,10.3204,87.282,87.16,10.3348]
[1770481327852,8.85788713,87.27,87.13,8.85788713]
[1770481328052,10.63188399,87.263,87.122,10.3393]
[1770481328260,8.85788713,87.24,87.122,10.3393]
[1770481329358,8.85788713,87.24,87.054,160.9594]
[1770481329359,8.85788713,87.24,87.14,10.3372]
[1770481329756,12.22299512,87.268,87.14,10.3372]
[1770481329952,1.59111113,87.268,87.14,10.3372]
[1770481330853,10.63188399,87.267,87.14,10.3372]
[1770481331253,10.3226,87.264,87.14,10.3372]
[1770481333062,1.59111113,87.268,87.157,10.3352]
[1770481333560,10.63188399,87.26,87.157,10.3352]
[1770481333760,10.63188399,87.26,87.14,10.3372]
[1770481334155,10.63188399,87.258,87.14,10.3372]
[1770481334565,10.63188399,87.26,87.14,10.3372]
[1770481334756,10.3233,87.258,87.14,10.3372]
[1770481334958,1.59111113,87.268,87.14,10.3372]
[1770481335263,1.59111113,87.268,87.157,10.3352]
[1770481335657,10.63188399,87.265,87.157,10.3352]
[1770481336665,10.63188399,87.256,87.139,10.3373]
[1770481337164,10.63188399,87.255,87.139,10.3373]
[1770481337850,10.3242,87.25,87.139,10.3373]
[1770481338256,10.3261,87.234,87.122,10.3393]
[1770481340961,8.8524011,87.24,87.138,10.3374]
[1770481341366,10.3257,87.238,87.138,10.3374]
[1770481342169,10.3238,87.254,87.138,10.3374]
[1770481342466,10.63188399,87.265,87.153,10.3357]
[1770481342661,19.48428509,87.27,87.153,10.3357]
[1770481343168,10.3224,87.265,87.153,10.3357]
[1770481343671,10.63188399,87.288,87.172,10.3334]
[1770481343869,10.63188399,87.286,87.172,10.3334]
[1770481344170,10.63188399,87.279,87.124,160.83]
[1770481344365,10.63188399,87.28,87.124,160.83]
[1770481344867,10.63188399,87.263,87.12,8.8524011]
[1770481345067,10.63188399,87.262,87.12,8.8524011]
[1770481345266,10.63188399,87.265,87.12,8.8524011]
[1770481345465,10.63188399,87.25,87.139,10.3373]
[1770481345660,10.63188399,87.25,87.09,169.7456011]
[1770481345661,8.8524011,87.24,87.09,169.7456011]
[1770481345972,10.63188399,87.221,87.07,169.7821011]
[1770481346171,10.328,87.218,87.107,10.3411]
[1770481346667,20.95988399,87.218,87.107,10.3411]
[1770481347063,10.328,87.218,87.107,10.3411]
[1770481348473,10.63188399,87.23,87.125,10.339]
[1770481348772,8.8524011,87.24,87.106,160.865]
[1770481348977,8.8524011,87.24,87.1,8.8524011]
[1770481349271,10.63188399,87.238,87.1,8.8524011]
[1770481349664,8.8524011,87.24,87.135,10.3378]
[1770481349865,10.63188399,87.243,87.1,8.8524011]
[1770481350068,10.3229,87.261,87.145,10.3366]
[1770481350274,10.63188399,87.257,87.145,10.3366]
[1770481350467,10.63188399,87.256,87.145,10.3366]
[1770481350674,10.63188399,87.237,87.098,160.8788]
[1770481351074,10.63188399,87.238,87.128,10.3387]
[1770481351262,10.3251,87.243,87.128,10.3387]
[1770481351263,20.95698399,87.243,87.128,10.3387]
[1770481351470,10.63188399,87.24,87.128,10.3387]
[1770481352167,10.63188399,87.237,87.128,10.3387]
[1770481352373,10.63188399,87.236,87.128,10.3387]
[1770481352573,10.63188399,87.222,87.111,10.3407]
[1770481352765,10.63188399,87.211,87.111,10.3407]
[1770481353071,10.63339866,87.202,87.06,8.8524011]
[1770481353277,19.48579976,87.2,87.046,13.93920781]
[1770481353572,10.63339866,87.157,87.02,8.8524011]
[1770481353769,10.63339866,87.148,87.034,10.3498]
[1770481353963,10.63339866,87.147,87.034,10.3498]
[1770481354169,10.63339866,87.141,87.034,10.3498]
[1770481354372,10.63339866,87.143,87.034,10.3498]
[1770481355270,10.63339866,87.144,87.034,10.3498]
[1770481355671,10.63339866,87.148,87.051,10.3478]
[1770481355972,10.63339866,87.158,87.051,10.3478]
[1770481356176,10.63339866,87.16,87.051,10.3478]
[1770481356377,10.63339866,87.165,87.051,10.3478]
[1770481356677,10.63339866,87.163,87.051,10.3478]
[1770481356876,10.63339866,87.161,87.051,10.3478]
[1770481357374,8.8524011,87.17,87.051,10.3478]
[1770481357375,10.63339866,87.157,87.051,10.3478]
[1770481357574,10.63339866,87.157,87.02,8.8524011]
[1770481357575,10.3356,87.154,87.032,10.35]
[1770481357768,10.63339866,87.138,87.032,10.35]
[1770481357972,10.63339866,87.147,87.032,10.35]
[1770481358275,10.63339866,87.149,87.032,10.35]
[1770481358470,10.63339866,87.145,87.032,10.35]
[1770481358674,10.63339866,87.149,87.032,10.35]
[1770481358877,10.3347,87.162,87.032,10.35]
[1770481358878,10.63339866,87.139,87.032,10.35]
[1770481359282,19.48579976,87.14,87.032,10.35]
[1770481359574,8.8524011,87.14,87.032,10.35]
[1770481359766,19.48579976,87.14,87.032,10.35]
[1770481359971,10.63339866,87.138,87.032,10.35]
[1770481360475,10.63339866,87.138,87.013,10.3523]
[1770481360674,10.63339866,87.124,87.013,10.3523]
[1770481360874,20.97269866,87.123,87.013,10.3523]
[1770481361078,19.48579976,87.11,86.996,10.3543]
[1770481361278,8.8524011,87.11,86.996,10.3543]
[1770481361480,10.63339866,87.109,86.996,10.3543]
[1770481361675,10.63339866,87.118,86.986,161.0853]
[1770481361874,10.63339866,87.118,86.937,13.96011135]
[1770481361875,10.63339866,87.108,86.96,8.8524011]
[1770481362074,10.3445,87.079,86.934,161.1826]
[1770481362380,10.3445,87.079,86.956,10.359]
[1770481362678,8.8524011,87.08,86.954,161.146]
[1770481363673,8.8524011,87.08,86.976,10.3566]
[1770481363870,8.8524011,87.08,86.934,161.1828]
[1770481364479,19.1968011,87.08,86.956,10.3591]
[1770481364778,8.8524011,87.06,86.956,10.3591]
[1770481365577,8.8524011,87.06,86.936,10.3614]
[1770481365977,10.3471,87.058,86.936,10.3614]
[1770481367485,10.3471,87.058,86.924,302.21268726]
[1770481367870,10.3471,87.058,86.928,10.3624]
[1770481368481,10.3471,87.058,86.945,10.3603]
[1770481368680,8.8524011,87.06,86.945,10.3603]
[1770481368984,160.8959,87.09,86.924,302.21268726]
[1770481368985,8.8524011,87.03,86.924,302.21268726]
[1770481369674,8.8524011,87.03,86.88,8.8524011]
[1770481369981,8.8524011,87.03,86.882,161.2794]
[1770481370374,8.8524011,87.03,86.885,161.2732]
[1770481370580,8.8524011,87.0,86.861,161.3172]
[1770481370780,8.8524011,87.0,86.871,161.2993]
[1770481371087,8.8524011,87.0,86.896,10.3662]
[1770481372186,8.8524011,87.0,86.912,10.3643]
[1770481372488,10.3505,87.028,86.912,10.3643]
[1770481372675,8.8524011,87.03,86.912,10.3643]
[1770481373484,8.8524011,87.03,86.929,10.3622]
[1770481374080,8.8524011,87.06,86.929,10.3622]
[1770481374277,8.8524011,87.06,86.946,10.3602]
[1770481374581,8.8524011,87.06,86.85,161.3374]
[1770481374582,8.8524011,87.03,86.883,161.2761]
[1770481374784,8.8524011,87.03,86.909,10.3647]
[1770481375484,10.3508,87.026,86.909,10.3647]
[1770481377385,10.3533,87.005,86.892,10.3667]
[1770481377781,8.8524011,87.0,86.875,10.3687]
[1770481377982,10.356,86.982,86.875,10.3687]
[1770481378188,8.8524011,86.97,86.844,308.19878685]
[1770481378391,8.8524011,86.97,86.853,10.3713]
[1770481378589,34.54,86.994,86.853,10.3713]
[1770481378781,34.54,86.999,86.86,8.8524011]
[1770481379092,8.8524011,87.0,86.87,10.3693]
[1770481379279,10.3559,86.983,86.87,10.3693]
[1770481379680,8.8524011,87.0,86.87,10.3693]
[1770481379894,10.3541,86.999,86.87,10.3693]